Cogmind - Beta 14 @@@ ROGUE MODE // 2025.04.26 @ 00:50:53 Player: jumpy Result: Destroyed by G-47 Trooper with Particle Gun Performance ------------- Evolutions (2) 1000 Regions Visited (4) 800 Robots Destroyed (73) 365 Value Destroyed (2054) 2054 Prototype IDs (6) 120 Alien Tech Used (0) 0 Bonus (378) 378 TOTAL SCORE: 4717 Bonus ------- High Alert Combat Kills 178 Entered Garrisons 200 Cogmind --------- Core Integrity 0/550 Matter 95/300 Energy 65/100 System Corruption 8% Temperature Warm (196) Movement Core (800) Ox15 Location -8/Garrison Parts ------- > --- POWER (1) -------- (None) > --- PROPULSION (4) --- (None) > --- UTILITY (4) ------ High-capacity Storage Unit > --- WEAPON (2) ------- Advanced Beam Cannon Scythe > --- INVENTORY (20) --- (None) Peak State ------------ > --- POWER ------------ Improved Ion Engine > --- PROPULSION ------- Titanium Leg Titanium Leg Titanium Leg Titanium Leg > --- UTILITY ---------- Small Storage Unit Hardened Light Armor Plating > --- WEAPON ----------- Advanced Beam Cannon Enhanced Autogun > --- INVENTORY -------- Ion Engine Improved Targeting Computer Improved Targeting Computer Improved Assault Rifle Enhanced Autogun Enhanced Autogun Rocket Launcher Scythe [Rating: 26] Favorites ----------- Power Improved Ion Engine Engine Improved Ion Engine Power Core Light Nuclear Core Propulsion Titanium Leg Treads Light Treads Leg Titanium Leg Wheel Wheel Hover Unit Improved Hover Unit Utility Small Storage Unit Device Seismic Detector Storage Small Storage Unit Processor Improved Targeting Computer Protection Hardened Light Armor Plating Weapon Enhanced Autogun Energy Gun Medium Laser Energy Cannon Advanced Beam Cannon Ballistic Gun Enhanced Autogun Ballistic Cannon Improved Light Cannon Launcher Rocket Launcher Build | -11 -10 -9 -8 -8 ------- Run | Yrd Mat Mat Mat Gar Slots Evolved 4 | . . 2 2 . Power . | . . . . . Propulsion 2 | . . 2 . . Utility 2 | . . . 2 . Weapon . | . . . . . Parts Attached 74 | 6 11 40 6 11 Power 7 | 1 1 4 . 1 Engine 6 | 1 1 4 . . Core 1 | . . . . 1 Reactor . | . . . . . Propulsion 26 | 2 4 18 . 2 Treads 2 | 2 . . . . Leg 6 | . 2 4 . . Wheel 14 | . . 12 . 2 Hover 4 | . 2 2 . . Flight . | . . . . . Utility 8 | 2 1 4 1 . Device 1 | 1 . . . . Storage 2 | 1 . 1 . . Processor 1 | . . . 1 . Hackware . | . . . . . Protection 4 | . 1 3 . . Artifact . | . . . . . Weapon 33 | 1 5 14 5 8 Energy Gun 9 | 1 4 4 . . Energy Cannon 2 | . . 1 . 1 Ballistic Gun 10 | . 1 6 . 3 Ballistic Cannon 3 | . . . 3 . Launcher 8 | . . 3 2 3 Special Weapon . | . . . . . Impact Weapon . | . . . . . Slashing Weapon 1 | . . . . 1 Piercing Weapon . | . . . . . Special Melee Weapon . | . . . . . Unidentified Prototypes 4 | . . 4 . . Parts Lost 26 | . 6 6 6 8 Power 4 | . 1 1 1 1 Propulsion 10 | . 2 3 1 4 Utility 4 | . 1 1 2 . Weapon 8 | . 2 1 2 3 Highest Loss Streak 6 | . 6 2 6 4 To Critical Strikes . | . . . . . Average Slot Usage (%) 87 | . 90 94 87 44 Engine 9 | . 11 10 8 . Treads 1 | . 11 . . . Leg 12 | . 12 16 . . Wheel 18 | . . 20 35 15 Hover 3 | . 2 5 . . Storage 11 | . 14 11 9 9 Protection 7 | . 7 8 8 . Energy Gun 7 | . 21 5 8 . Energy Cannon 2 | . . 3 . . Ballistic Gun 9 | . 3 11 3 14 Peak Build Rating 26 | 6 10 26 24 15 Average Rating 15 | 4 6 18 21 10 On Entrance 9 | . 6 9 22 8 Naked Turns . | . . . . . Heaviest Build 59 | 13 15 59 59 52 Greatest Support 68 | 40 40 68 48 46 Greatest Overweight (x) 15 | . 2 3 1 15 Average Overweight (x) . | . . . 1 1 Largest Inventory Capacity 20 | 8 8 20 20 20 Average Capacity 12 | 6 8 12 20 20 Most Carried 10 | 7 8 10 9 6 Average Carried 6 | 4 6 7 7 3 Final Capacity 20 | 8 8 20 20 20 Final Carried 9 | 7 7 9 7 . Class Distribution -------------------- 84% | Mutant 15% | Scavenger-Mutant Dominant Class ---------------- Mutant | -10/Materials Mutant | -9/Materials Mutant | -8/Materials Mutant | -8/Garrison Resources | -11 -10 -9 -8 -8 ----------- Run | Yrd Mat Mat Mat Gar Matter Collected 1428 | 240 114 731 232 111 Remotely . | . . . . . Salvage Created 2517 | 69 376 1462 357 253 Parts 150 | 6 17 99 20 8 Haulers Intercepted 4 | . 2 2 . . Recyclers Shooed 2 | . . 2 . . Parts Field Recycled . | . . . . . Retrieved Matter . | . . . . . Parts Self-Destructed . | . . . . . Prevented . | . . . . . Kills | -11 -10 -9 -8 -8 ------- Run | Yrd Mat Mat Mat Gar Combat Hostiles Destroyed 52 | . 7 30 8 7 Guns 28 | . 6 15 2 5 Cannons 7 | . . 4 3 . AOE 14 | . . 9 3 2 Classes Destroyed 11 | 1 5 5 . . Worker 3 | . . 3 . . Builder 3 | . . 2 1 . Tunneler 4 | 3 . 1 . . Hauler 4 | . 2 2 . . Recycler 2 | . 1 1 . . Operator 1 | . . 1 . . Watcher 4 | . 1 3 . . Swarmer 12 | . 5 7 . . Grunt 27 | . 2 12 6 7 Brawler 1 | . . 1 . . Sentry 12 | . . 10 2 . Best Kill Streak 6 | 1 6 6 5 3 Combat Bots Only 4 | . 3 4 4 3 Max Kills in Single Turn 4 | 1 1 4 2 1 Gunslinging . | . . . . . Exploded 3 | . . 3 1 1 Melee . | . . . . . Uniques/NPCs Destroyed . | . . . . . Combat | -11 -10 -9 -8 -8 -------- Run | Yrd Mat Mat Mat Gar Hostile Shots Fired 356 | . 61 145 82 68 Missed 89 | . 12 37 24 16 Damage Taken 4151 | . 646 1493 1186 826 Core 851 | . 94 199 281 277 Absorbed by Shields . | . . . . . Core Remaining (%) 70 | 100 62 50 . . Volleys Fired 204 | 14 34 116 18 22 Largest 2 | 1 2 2 2 2 Hottest 113 | 50 80 113 95 58 Shots Fired 343 | 14 49 203 36 41 Gun 278 | 14 49 159 21 35 Cannon 47 | . . 36 11 . Launcher 18 | . . 8 4 6 Special . | . . . . . Kinetic 158 | . 6 103 14 35 Thermal 146 | 14 25 89 18 . Explosive 18 | . . 8 4 6 Electromagnetic 21 | . 18 3 . . Robot Hit Streak 23 | 12 6 23 9 7 Robot Miss Streak 5 | 1 2 5 3 4 Penetration Max . | . . . . . Secondary Targets 2 | . . 1 . 1 Max Gunslinging Chain 1 | . . 1 . 1 Shots Hit Robots 237 | 13 31 138 22 33 Core Hits 113 | 3 15 55 20 20 Critical Kills 1 | . . 1 . . Critical Parts Destroyed . | . . . . . Critical Strikes 6 | 1 . 3 2 . Burn 5 | 1 . 2 2 . Meltdown 1 | . . 1 . . Melee Attacks . | . . . . . Impact . | . . . . . Slashing . | . . . . . Piercing . | . . . . . Sneak Attacks . | . . . . . Combat Hostiles . | . . . . . Follow-up Attacks . | . . . . . Damage Inflicted 5259 | 160 506 2887 806 900 Guns 3225 | 160 388 1795 244 638 Cannons 495 | . . 351 144 . Explosions 1515 | . 118 717 418 262 Melee . | . . . . . Ramming 24 | . . 24 . . Kinetic 2061 | . 40 1193 190 638 Thermal 1513 | 160 240 915 198 . Explosive 1397 | . . 717 418 262 Electromagnetic 264 | . 226 38 . . Impact . | . . . . . Slashing . | . . . . . Piercing . | . . . . . Highest Corruption 8 | . . . 8 8 Average Corruption 8 | . . . 8 8 Corruption Purged . | . . . . . Corruption Blocked . | . . . . . Effects 7 | . . . 1 6 Message Errors 2 | . . . . 2 Heat Flow Errors 2 | . . . . 2 Energy Discharges 1 | . . . . 1 Parts Rejected 1 | . . . . 1 Alerts 1 | . . . 1 . Overload Shots . | . . . . . Overflow Damage 24 | . . 24 . . Projectiles . | . . . . . Explosions 24 | . . 24 . . Melee . | . . . . . Knockbacks . | . . . . . Impact . | . . . . . Kinetic . | . . . . . Secondary . | . . . . . Self-Inflicted Damage 223 | . 158 17 34 14 Shots 8 | . 4 1 2 1 Rammed 2 | . 1 1 . . Targets Rammed 5 | . 2 3 . . Kicked 2 | . . 2 . . Crushed 1 | . 1 . . . Highest Temperature 510 | 60 135 510 119 265 Average Temperature 85 | 21 53 104 48 78 Received Heat Transfer 1602 | . 201 528 333 540 Effects 5 | . . 5 . . Shutdowns 2 | . . 2 . . Energy Bleed 1 | . . 1 . . Short Circuit 1 | . . 1 . . Damage (minor) 1 | . . 1 . . Siege Activations . | . . . . . Robots Corrupted . | . . . . . Combat Hostiles . | . . . . . Parts Fried . | . . . . . Impact Corruptions . | . . . . . Robots Melted 3 | . 1 2 . . Combat Hostiles 3 | . 1 2 . . Parts Melted 11 | 3 3 5 . . Heat Transferred 4292 | 555 703 2442 592 . Parts Sabotaged . | . . . . . Parts Stolen . | . . . . . Parts Stripped . | . . . . . Power Chain Reactions 2 | . 2 . . . Alert | -11 -10 -9 -8 -8 ------- Run | Yrd Mat Mat Mat Gar Peak Influence 687 | 15 196 687 606 504 Initial 354 | . 9 . 273 354 Average 283 | 5 103 317 386 383 Maximum Alert Level 2 | . . 2 2 2 Low Security (%) 39 | 100 100 32 . . Level 1 33 | . . 31 66 71 Level 2 27 | . . 35 33 28 Level 3 . | . . . . . Level 4 . | . . . . . Level 5 . | . . . . . High Security . | . . . . . Max Security . | . . . . . Squads Dispatched 4 | . . 2 2 . Investigation 2 | . . 1 1 . Extermination . | . . . . . Reinforcement 1 | . . 1 . . Assault . | . . . . . Garrison 1 | . . . 1 . Intercept . | . . . . . Searches Triggered . | . . . . . Construction Impeded . | . . . . . Haulers Reinforced . | . . . . . Active Scanning Responses . | . . . . . Cargo Convoy Interrupts . | . . . . . Stealth | -11 -10 -9 -8 -8 --------- Run | Yrd Mat Mat Mat Gar Distress Signals 6 | . 2 4 . . Communications Jammed . | . . . . . Distress Signals . | . . . . . Times Spotted 87 | . 13 48 15 11 Peak Tracking Total 7 | . 5 7 7 4 Tactical Retreats 6 | . . 4 . 2 Traps | -11 -10 -9 -8 -8 ------- Run | Yrd Mat Mat Mat Gar Traps Triggered 4 | . . 1 1 2 Indirectly . | . . . . . Trap Hack Attempts . | . . . . . Triggered . | . . . . . Disarmed . | . . . . . Reprogrammed . | . . . . . Reused . | . . . . . Traps Extracted . | . . . . . Installed . | . . . . . Triggered . | . . . . . Machines | -11 -10 -9 -8 -8 ---------- Run | Yrd Mat Mat Mat Gar Machines Disabled 8 | . 2 4 2 . Max in Single Turn 2 | . 2 2 1 . Garrison Relay 1 | . . . . 1 Machines Repaired . | . . . . . Machines Dismantled . | . . . . . Machines Sabotaged . | . . . . . Overloaded Fab Kills . | . . . . . Hacking | -11 -10 -9 -8 -8 --------- Run | Yrd Mat Mat Mat Gar Machines Accessed 4 | . 2 1 1 . Terminals 2 | . 2 . . . Fabricators . | . . . . . Repair Stations . | . . . . . Recycling Units . | . . . . . Scanalyzers 1 | . . 1 . . Garrison Access 1 | . . . 1 . Total Hacks 11 | . 3 7 1 . Successful 8 | . 2 5 1 . Failed 3 | . 1 2 . . Catastrophic . | . . . . . Database Lockouts . | . . . . . Manual 3 | . 3 . . . Terminals 3 | . 3 . . . Fabricators . | . . . . . Repair Stations . | . . . . . Recycling Units . | . . . . . Scanalyzers 7 | . . 7 . . Garrison Access 1 | . . . 1 . Terminal Hacks 1 | . 1 . . . Prototype ID Bank 1 | . 1 . . . Fabricator Hacks . | . . . . . Repair Station Hacks . | . . . . . Recycling Unit Hacks . | . . . . . Scanalyzer 5 | . . 5 . . Insert Component 2 | . . 2 . . Analyze 3 | . . 3 . . Garrison Access Hacks 1 | . . . 1 . Unlock Access 1 | . . . 1 . Unauthorized Hacks 1 | . 1 . . . Terminals 1 | . 1 . . . Assimilate 1 | . 1 . . . Fabricators . | . . . . . Repair Stations . | . . . . . Recycling Units . | . . . . . Scanalyzers . | . . . . . Garrison Access . | . . . . . Data Cores Recovered . | . . . . . Used . | . . . . . Hacking Detections 2 | . 1 1 . . Full Trace Events . | . . . . . Feedback Events . | . . . . . Feedback Blocked . | . . . . . Robot Schematics Acquired . | . . . . . Robots Built . | . . . . . Authchips . | . . . . . Time . | . . . . . Total Robot Build Rating . | . . . . . Part Schematics Acquired 1 | . . 1 . . Parts Built . | . . . . . Authchips . | . . . . . Time . | . . . . . Total Part Build Rating . | . . . . . Parts Repaired . | . . . . . Time . | . . . . . Parts Recycled . | . . . . . Recycled Matter . | . . . . . Retrieved Matter . | . . . . . Retrieved Components . | . . . . . Parts Scanalyzed 2 | . . 2 . . Part Schematics Acquired 1 | . . 1 . . Parts Damaged . | . . . . . Bothacking | -11 -10 -9 -8 -8 ------------ Run | Yrd Mat Mat Mat Gar Used RIF Installer . | . . . . . Robots Hacked . | . . . . . Non-combat . | . . . . . Combat . | . . . . . Robot Hacks Applied . | . . . . . Relay Couplers Released 4 | . . . . 4 Machine Destruction 4 | . . . . 4 Fabnet Peak Effective % . | . . . . . Robots Rewired . | . . . . . Allies Hacked . | . . . . . Hacks Repelled . | . . . . . Allies | -11 -10 -9 -8 -8 -------- Run | Yrd Mat Mat Mat Gar Total Allies 1 | . 1 . . . Largest Group 1 | . 1 1 . . Highest-Rated Group 10 | . 10 10 . . Highest-Rated Ally 10 | . 10 10 . . Total Orders . | . . . . . Ally Attacks . | . . . . . Total Damage . | . . . . . Kills . | . . . . . Allies Corrupted . | . . . . . Allies Melted . | . . . . . Intel | -11 -10 -9 -8 -8 ------- Run | Yrd Mat Mat Mat Gar Robot Analysis Total . | . . . . . Derelict Logs Recovered . | . . . . . Drone Launches . | . . . . . Drone Recoveries . | . . . . . Exploration | -11 -10 -9 -8 -8 ------------- Run | Yrd Mat Mat Mat Gar Turns Passed 2946 | 167 419 1763 313 284 Spaces Moved 1910 | 83 224 1254 205 144 Core 20 | 9 5 . . 6 Treads 151 | 74 77 . . . Legs 499 | . 108 391 . . Wheels 1026 | . . 683 205 138 Hover 214 | . 34 180 . . Flight . | . . . . . Fastest Speed 48 | 50 100 48 105 87 Average Speed 109 | 148 133 100 105 137 Slowest Speed 800 | 160 180 145 105 800 Overloaded Moves . | . . . . . Propulsion Burnouts . | . . . . . Robots Hopped . | . . . . . Cave-ins Triggered 1 | . . . 1 . Exploration Rate (%) 33 | 5 32 92 22 15 Regions Visited 4 Branch Regions . Pre-discovered Areas . | . . . . . Known Exits Taken 1 | . . . 1 . Unknown Exits Taken 3 | 1 1 1 . . Scrap Searched . | . . . . . Spaces Dug . | . . . . . Terrain Destroyed 94 | . . 39 29 26 Melee . | . . . . . Projectile . | . . . . . AOE 94 | . . 39 29 26 Terrain Rammed . | . . . . . Walls Destroyed . | . . . . . Machines Disabled . | . . . . . Actions | -11 -10 -9 -8 -8 --------- Run | Yrd Mat Mat Mat Gar Total 2451 | 111 294 1586 266 194 Wait 177 | . 13 129 35 . Move 1906 | 82 223 1253 204 144 Hop . | . . . . . Pick Up 29 | 8 6 14 1 . Fast Attach 30 | 6 6 17 . 1 Attach 18 | . 3 6 1 8 Detach 3 | . . 2 . 1 Swap 26 | . 2 17 5 2 Drop 37 | 1 5 29 2 . Fire 204 | 14 34 116 18 22 Melee . | . . . . . Ram 2 | . 1 1 . . Kick 2 | . . 2 . . Crush 1 | . 1 . . . Escape Stasis 16 | . . . . 16 Rewire . | . . . . . Trap . | . . . . . Miscellaneous . | . . . . . Route ------- -11/Scrapyard -10/Materials -9/Materials (discovered 5 exits: *Mat x3 / [*Min x2]) -8/Materials -8/Garrison History --------- Turn | Location | Event 17 | -11/Scrapyard | Discovered new exit (range 16) 168 | -11/Scrapyard | Entered Materials 307 | -10/Materials | Build established: Mutant 382 | -10/Materials | Lost 6 parts (1p2n1u2w) 500 | -10/Materials | Discovered new exit (range 16) 587 | -10/Materials | Entered another Materials area 587 | -9/Materials | Accompanied by 1 ally 587 | -9/Materials | Evolved 2 slots: Propulsion x2 757 | -9/Materials | Discovered new exit (range 13) 1464 | -9/Materials | Discovered new exit (range 13) 1711 | -9/Materials | Discovered new exit (range 4) 1892 | -9/Materials | Discovered new exit (range 15) 2130 | -9/Materials | Build established: Scavenger-Mutant 2330 | -9/Materials | Discovered new exit (range 12) 2350 | -9/Materials | Entered another Materials area 2350 | -8/Materials | Evolved 2 slots: Utility x2 2591 | -8/Materials | Build established: Mutant 2658 | -8/Materials | Crushed by falling debris 2662 | -8/Materials | Identified exit to Garrison 2663 | -8/Materials | Core integrity fell below 50% 2663 | -8/Materials | Entered Garrison 2689 | -8/Garrison | Lost 6 parts (1p1n2u2w) 2723 | -8/Garrison | Triggered checkpoint 2757 | -8/Garrison | Triggered checkpoint 2768 | -8/Garrison | Garrison Relay disabled 2799 | -8/Garrison | Lost 4 parts (4n) 2857 | -8/Garrison | Core integrity fell below 20% 2941 | -8/Garrison | Triggered checkpoint 2947 | -8/Garrison | Destroyed by G-47 Trooper with Particle Gun Last Messages --------------- 02801_ Acquired 29 matter. 02870_ G-47 Trooper destroyed. 02871_ System corrupted: Com. Wheel rejected. 02871_ The unstable cave ceiling collapses. 02875_ Critical hit (Burn: +37). 02877_ Enh. Autogun destroyed. 02881_ G-47 Trooper destroyed. 02893_ System corrupted: Energy discharge (-35). 02907_ The unstable cave ceiling collapses. 02927_ Lgt. Nuclear Core destroyed. 02930_ The unstable cave ceiling collapses. 02932_ G-47 Trooper destroyed. 02937_ System corrupted: Heat flow error (+268). 02938_ G-50 Soldier destroyed. 02941_ Beams of light sweep through the air. An alarm sounds. 02943_ C-30 ARC bursts open, deploying its payload. 02943_ G-50 Soldier unfolds itself. 02943_ G-47 Trooper unfolds itself. 02943_ Rocket Launcher destroyed. 02945_ Hpw. Shotgun destroyed. Map ----- +----------------------------------------------------+ | ?????????????????????????????????????????????????? | | ?????????????????????????????????????????????????? | | ?????????????????????????????????????????????????? | | ?????????????????????????????????????????????????? | | ?????????????????????????????????????????????????? | | ?????????????????????????????????????????????????? | | ?????????????????????????????????????????????????? | | ?????????????????????????????????????????????????? | | ?????????????????????????????????????????????????? | | ????????????????????????? ?????????????????????? | | ????????????????????????# ?????????????????????? | | ????????????????????????# ????????????????????? | | ????????????????????????# ##???????????????????? | | ????????????????????????# ??? ##?????????????? | | ???????????????????????? ?? ????????????? | | ???????????????????????? ?? ????????????? | | ???????????????????????? ?? ???????????? | | ???????????????????????? ? ????????????? | | ????????????????????????#% g## ! #?????????????? | | ????????????????????????#ggg %* #?????????????? | | ???????????????????????? = ???????????????? | | ????????????????????????# ????????????????? | | ?????????????????????#### *% ??????????????????? | | ?????????????????????# #???????????????????? | | ?????????????????????# #???????????????????? | | ????????????????????## @ #???????????????????? | | ????????????????????# %!% #???????????????????? | | ????????????????????# # #???????????????????? | | ??????????????????????## #???????????????????? | | ??????????????????????### ##???????????????????? | | ######################### #????????????????????? | | = #????????????????????? | | ^ #????????????????????? | | #????????????????????? | | ################ ###########????????????????????? | | ???????????????# #??????????????????????????????? | | ???????????????# #??????????????????????????????? | | ???????????????# #??????????????????????????????? | | ???????????????# #??????????????????????????????? | | ???????????????# #??????????????????????????????? | | ???????????????# ########???????????????????????? | | ???????????????# ##"!"""#???????????????????????? | | ???????????????# ###!! ###??????????????????????? | | ???????????????# ! #??????????????????????? | | ???????????????# #??????????????????????? | | ???????????????# ## ! ##??????????????????????? | | ???????????????# ## #???????????????????????? | | ???????????????# ########???????????????????????? | | ???????????????# #??????????????????????????????? | | ???????????????# #??????????????????????????????? | +----------------------------------------------------+ Best States ------------- Heat Dissipation 31 Energy Generation 14 Energy Capacity 265 Matter Stores 300 Matter Capacity 300 Sight Range 16 Terrain Scan Density 10 Armor Coverage 150 Evasion (%) 55 Targeting Accuracy 6 Recoil Reduction 2 Item Schematics ----------------- Enh. Autogun | -9/Materials | Scanalyzed Robot Schematics ------------------ None Fabricated ------------ Nothing Alien Tech Used ----------------- None Achievements -------------- None Challenges ------------ None Game ------ Seed ChainThiefBiocell Manual? 0 Play Time 00:20:30 Cumulative 52.2 hours Start 2025.04.26 @ 00:32:08 End 2025.04.26 @ 00:50:53 Sessions 1 Manual Loads 0 Difficulty Rogue Special Mode None Game No. 154 Rogue 154 Adventurer 0 Explorer 0 Win Type - Total 0 Types 0/0/0/0/0/0/0/0/0 Lore% 14 Gallery% 39 Achievement% 32 Wizard Run 0 Options --------- Layout 0 ASCII 0 Keyboard 0 Movement Numpad Keybinds 0 Fullscreen 2 Font 18/Terminus Map View 76x50 Zoom Use 0% Tactical HUD 1 Map Filters NONE Filters NONE Steam 1 RUN: 0a93338b-96b5-4c29-99d8-7ae2327caada